[Event "Titled Tuesday Blitz August 16 Late 2022"]
[White "D`Arruda, Ricardo D."]
[Black "Senthil Maran K"]
[WhiteFideId "100692"]
[BlackFideId "25035681"]
[WhiteElo "2271"]
[BlackElo "2124"]
[Result "0-1"]
[Round "06"]
[TimeControl "180+1"]
[Date "2022.08.18"]
[WhiteClock "0:00:00"]
[BlackClock "0:00:00"]

1. d4 {[%clk 0:00:00]}  Nf6 {[%clk 0:00:00]} 2. Nf3 {[%clk 0:00:00]}  d5 {[%clk 0:00:00]} 3. Nbd2 {[%clk 0:00:00]}  g6 {[%clk 0:00:00]} 4. g3 {[%clk 0:00:00]}  Bg7 {[%clk 0:00:00]} 5. Bg2 {[%clk 0:00:00]}  O-O {[%clk 0:00:00]} 6. O-O {[%clk 0:00:00]}  Ne4 {[%clk 0:00:00]} 7. c3 {[%clk 0:00:00]}  f5 {[%clk 0:00:00]} 8. Ne5 {[%clk 0:00:00]}  Nd7 {[%clk 0:00:00]} 9. Nxd7 {[%clk 0:00:00]}  Bxd7 {[%clk 0:00:00]} 10. f3 {[%clk 0:00:00]}  Nxd2 {[%clk 0:00:00]} 11. Bxd2 {[%clk 0:00:00]}  c6 {[%clk 0:00:00]} 12. e4 {[%clk 0:00:00]}  Be6 {[%clk 0:00:00]} 13. e5 {[%clk 0:00:00]}  c5 {[%clk 0:00:00]} 14. Be3 {[%clk 0:00:00]}  c4 {[%clk 0:00:00]} 15. Qd2 {[%clk 0:00:00]}  b5 {[%clk 0:00:00]} 16. b4 {[%clk 0:00:00]}  cxb3 {[%clk 0:00:00]} 17. axb3 {[%clk 0:00:00]}  a5 {[%clk 0:00:00]} 18. Ra2 {[%clk 0:00:00]}  Qc7 {[%clk 0:00:00]} 19. Rfa1 {[%clk 0:00:00]}  Rfc8 {[%clk 0:00:00]} 20. Bf1 {[%clk 0:00:00]}  Bd7 {[%clk 0:00:00]} 21. Rc1 {[%clk 0:00:00]}  e6 {[%clk 0:00:00]} 22. c4 {[%clk 0:00:00]}  dxc4 {[%clk 0:00:00]} 23. bxc4 {[%clk 0:00:00]}  b4 {[%clk 0:00:00]} 24. c5 {[%clk 0:00:00]}  b3 {[%clk 0:00:00]} 25. Raa1 {[%clk 0:00:00]}  Qb7 {[%clk 0:00:00]} 26. Qb2 {[%clk 0:00:00]}  Qxf3 {[%clk 0:00:00]} 27. Qxb3 {[%clk 0:00:00]}  a4 {[%clk 0:00:00]} 28. Qc3 {[%clk 0:00:00]}  Bc6 {[%clk 0:00:00]} 29. Bf4 {[%clk 0:00:00]}  Qh1+ {[%clk 0:00:00]} 30. Kf2 {[%clk 0:00:00]}  Qxh2+ {[%clk 0:00:00]} 31. Ke1 {[%clk 0:00:00]}  Rcb8 {[%clk 0:00:00]} 32. Rc2 {[%clk 0:00:00]}  Qh5 {[%clk 0:00:00]} 33. Rb2 {[%clk 0:00:00]}  g5 {[%clk 0:00:00]} 34. Bd2 {[%clk 0:00:00]}  Rxb2 {[%clk 0:00:00]} 35. Qxb2 {[%clk 0:00:00]}  Qf3 {[%clk 0:00:00]} 36. Qc3 {[%clk 0:00:00]}  Qe4+ {[%clk 0:00:00]} 37. Qe3 {[%clk 0:00:00]}  h6 {[%clk 0:00:00]} 38. Qxe4 {[%clk 0:00:00]}  Bxe4 {[%clk 0:00:00]} 39. Bc4 {[%clk 0:00:00]}  Kf7 {[%clk 0:00:00]} 40. Bb4 {[%clk 0:00:00]}  Bf8 {[%clk 0:00:00]} 41. Kd2 {[%clk 0:00:00]}  Bc6 {[%clk 0:00:00]} 42. Ba3 {[%clk 0:00:00]}  h5 {[%clk 0:00:00]} 43. Rb1 {[%clk 0:00:00]}  Be7 {[%clk 0:00:00]} 44. Rb6 {[%clk 0:00:00]}  Rc8 {[%clk 0:00:00]} 45. Ba6 {[%clk 0:00:00]}  Rc7 {[%clk 0:00:00]} 46. Bb5 {[%clk 0:00:00]}  Bxb5 {[%clk 0:00:00]} 47. Rxb5 {[%clk 0:00:00]}  h4 {[%clk 0:00:00]} 48. gxh4 {[%clk 0:00:00]}  gxh4 {[%clk 0:00:00]} 49. Ke3 {[%clk 0:00:00]}  Rc8 {[%clk 0:00:00]} 50. Kf3 {[%clk 0:00:00]}  Rg8 {[%clk 0:00:00]} 51. Kf2 {[%clk 0:00:00]}  Rg3 {[%clk 0:00:00]} 52. Bc1 {[%clk 0:00:00]}  Rb3 {[%clk 0:00:00]} 53. Ra5 {[%clk 0:00:00]}  Rb4 {[%clk 0:00:00]} 54. Ra7 {[%clk 0:00:00]}  Rxd4 {[%clk 0:00:00]} 55. Bg5 {[%clk 0:00:00]}  Kg6 {[%clk 0:00:00]} 56. Bxe7 {[%clk 0:00:00]}  h3 {[%clk 0:00:00]} 57. c6 {[%clk 0:00:00]}  Rd2+ {[%clk 0:00:00]} 58. Kg1 {[%clk 0:00:00]}  Rc2 {[%clk 0:00:00]} 59. c7 {[%clk 0:00:00]}  f4 {[%clk 0:00:00]} 60. Bd6 {[%clk 0:00:00]}  Kf5 {[%clk 0:00:00]} 61. Rxa4 {[%clk 0:00:00]}  f3 {[%clk 0:00:00]} 62. Ra8 {[%clk 0:00:00]}  h2+ {[%clk 0:00:00]} 63. Kh1 {[%clk 0:00:00]}  f2 {[%clk 0:00:00]} 64. Rf8+ {[%clk 0:00:00]}  Ke4 {[%clk 0:00:00]} 65. Rf7 {[%clk 0:00:00]}  Ke3 {[%clk 0:00:00]} 66. Bc5+ {[%clk 0:00:00]}  Rxc5 {[%clk 0:00:00]} 67. Kxh2 {[%clk 0:00:00]}  Rxc7 {[%clk 0:00:00]} 68. Rxc7 {[%clk 0:00:00]}  f1=Q {[%clk 0:00:00]} 69. Rg7 {[%clk 0:00:00]}  Ke4 {[%clk 0:00:00]} 70. Rg5 {[%clk 0:00:00]}  Kf4 {[%clk 0:00:00]} 71. Rh5 {[%clk 0:00:00]}  Qf2+ {[%clk 0:00:00]} 72. Kh3 {[%clk 0:00:00]}  Qf3+ {[%clk 0:00:00]} 73. Kh4 {[%clk 0:00:00]}  Qg4# {[%clk 0:00:00]} 0-1


[Site "https://www.chess.com"]

[Event "Titled Tuesday Blitz August 16 Late 2022"]
[White "Do Nascimento,Christian Almeida"]
[Black "Zenin, Dmitry"]
[WhiteFideId "2143801"]
[BlackFideId "4127897"]
[WhiteElo "2085"]
[BlackElo "2215"]
[Result "0-1"]
[Round "06"]
[TimeControl "180+1"]
[Date "2022.08.18"]
[WhiteClock "0:00:00"]
[BlackClock "0:00:00"]

1. d4 {[%clk 0:00:00]}  Nf6 {[%clk 0:00:00]} 2. Bg5 {[%clk 0:00:00]}  d5 {[%clk 0:00:00]} 3. Nd2 {[%clk 0:00:00]}  Nbd7 {[%clk 0:00:00]} 4. e3 {[%clk 0:00:00]}  c5 {[%clk 0:00:00]} 5. c3 {[%clk 0:00:00]}  b6 {[%clk 0:00:00]} 6. Bd3 {[%clk 0:00:00]}  Bb7 {[%clk 0:00:00]} 7. f4 {[%clk 0:00:00]}  e6 {[%clk 0:00:00]} 8. Ngf3 {[%clk 0:00:00]}  Qc7 {[%clk 0:00:00]} 9. O-O {[%clk 0:00:00]}  Ne4 {[%clk 0:00:00]} 10. Bh4 {[%clk 0:00:00]}  f5 {[%clk 0:00:00]} 11. Ne5 {[%clk 0:00:00]}  Nxe5 {[%clk 0:00:00]} 12. fxe5 {[%clk 0:00:00]}  c4 {[%clk 0:00:00]} 13. Bc2 {[%clk 0:00:00]}  b5 {[%clk 0:00:00]} 14. Nxe4 {[%clk 0:00:00]}  dxe4 {[%clk 0:00:00]} 15. a4 {[%clk 0:00:00]}  b4 {[%clk 0:00:00]} 16. cxb4 {[%clk 0:00:00]}  Bxb4 {[%clk 0:00:00]} 17. a5 {[%clk 0:00:00]}  O-O {[%clk 0:00:00]} 18. a6 {[%clk 0:00:00]}  Bd5 {[%clk 0:00:00]} 19. Kh1 {[%clk 0:00:00]}  Rab8 {[%clk 0:00:00]} 20. g4 {[%clk 0:00:00]}  Be7 {[%clk 0:00:00]} 21. Bxe7 {[%clk 0:00:00]}  Qxe7 {[%clk 0:00:00]} 22. gxf5 {[%clk 0:00:00]}  exf5 {[%clk 0:00:00]} 23. Rb1 {[%clk 0:00:00]}  Qh4 {[%clk 0:00:00]} 24. Rf4 {[%clk 0:00:00]}  Qh3 {[%clk 0:00:00]} 25. Qe2 {[%clk 0:00:00]}  Kh8 {[%clk 0:00:00]} 26. Ba4 {[%clk 0:00:00]}  g5 {[%clk 0:00:00]} 27. Rff1 {[%clk 0:00:00]}  f4 {[%clk 0:00:00]} 28. Qg2 {[%clk 0:00:00]}  Qxe3 {[%clk 0:00:00]} 29. Qxg5 {[%clk 0:00:00]}  Qxd4 {[%clk 0:00:00]} 30. Rbd1 {[%clk 0:00:00]}  e3+ {[%clk 0:00:00]} 31. Kg1 {[%clk 0:00:00]}  Qe4 {[%clk 0:00:00]} 32. Rxd5 {[%clk 0:00:00]}  Qxd5 {[%clk 0:00:00]} 33. Rxf4 {[%clk 0:00:00]}  Rg8 {[%clk 0:00:00]} 0-1


[Site "https://www.chess.com"]

[Event "Titled Tuesday Blitz August 16 Late 2022"]
[White "Fernandez Hernandez, Gerardo"]
[Black "McBryde, Lamel"]
[WhiteFideId "2207400"]
[BlackFideId "2058596"]
[WhiteElo "2169"]
[BlackElo "2136"]
[Result "0-1"]
[Round "06"]
[TimeControl "180+1"]
[Date "2022.08.18"]
[WhiteClock "0:00:00"]
[BlackClock "0:00:00"]

1. e4 {[%clk 0:00:00]}  Nf6 {[%clk 0:00:00]} 2. e5 {[%clk 0:00:00]}  Nd5 {[%clk 0:00:00]} 3. c4 {[%clk 0:00:00]}  Nb6 {[%clk 0:00:00]} 4. d4 {[%clk 0:00:00]}  d6 {[%clk 0:00:00]} 5. exd6 {[%clk 0:00:00]}  cxd6 {[%clk 0:00:00]} 6. Nc3 {[%clk 0:00:00]}  g6 {[%clk 0:00:00]} 7. Be3 {[%clk 0:00:00]}  Bg7 {[%clk 0:00:00]} 8. Rc1 {[%clk 0:00:00]}  O-O {[%clk 0:00:00]} 9. b3 {[%clk 0:00:00]}  Bf5 {[%clk 0:00:00]} 10. Nf3 {[%clk 0:00:00]}  d5 {[%clk 0:00:00]} 11. c5 {[%clk 0:00:00]}  Nc8 {[%clk 0:00:00]} 12. Bd3 {[%clk 0:00:00]}  Bg4 {[%clk 0:00:00]} 13. h3 {[%clk 0:00:00]}  Bxf3 {[%clk 0:00:00]} 14. Qxf3 {[%clk 0:00:00]}  e6 {[%clk 0:00:00]} 15. O-O {[%clk 0:00:00]}  Nc6 {[%clk 0:00:00]} 16. Ne2 {[%clk 0:00:00]}  a6 {[%clk 0:00:00]} 17. a3 {[%clk 0:00:00]}  e5 {[%clk 0:00:00]} 18. Qg3 {[%clk 0:00:00]}  e4 {[%clk 0:00:00]} 19. Bb1 {[%clk 0:00:00]}  N8e7 {[%clk 0:00:00]} 20. Rfd1 {[%clk 0:00:00]}  Nf5 {[%clk 0:00:00]} 21. Qh2 {[%clk 0:00:00]}  Nxe3 {[%clk 0:00:00]} 22. fxe3 {[%clk 0:00:00]}  Ne7 {[%clk 0:00:00]} 23. g4 {[%clk 0:00:00]}  Bh6 {[%clk 0:00:00]} 24. Nf4 {[%clk 0:00:00]}  f5 {[%clk 0:00:00]} 25. Rf1 {[%clk 0:00:00]}  fxg4 {[%clk 0:00:00]} 26. hxg4 {[%clk 0:00:00]}  Bg5 {[%clk 0:00:00]} 27. Qg3 {[%clk 0:00:00]}  Qc7 {[%clk 0:00:00]} 28. b4 {[%clk 0:00:00]}  Nc6 {[%clk 0:00:00]} 29. Ba2 {[%clk 0:00:00]}  Rad8 {[%clk 0:00:00]} 30. Kg2 {[%clk 0:00:00]}  Kh8 {[%clk 0:00:00]} 31. Ne6 {[%clk 0:00:00]}  Qxg3+ {[%clk 0:00:00]} 32. Kxg3 {[%clk 0:00:00]}  Bxe3 {[%clk 0:00:00]} 33. Rce1 {[%clk 0:00:00]}  Rxf1 {[%clk 0:00:00]} 34. Rxf1 {[%clk 0:00:00]}  Re8 {[%clk 0:00:00]} 35. Nc7 {[%clk 0:00:00]}  Rd8 {[%clk 0:00:00]} 36. Nxd5 {[%clk 0:00:00]}  Bxd4 {[%clk 0:00:00]} 37. Re1 {[%clk 0:00:00]}  e3 {[%clk 0:00:00]} 38. Nxe3 {[%clk 0:00:00]}  Re8 {[%clk 0:00:00]} 39. Ng2 {[%clk 0:00:00]}  Rxe1 {[%clk 0:00:00]} 40. Nxe1 {[%clk 0:00:00]}  Bb2 {[%clk 0:00:00]} 41. Kf2 {[%clk 0:00:00]}  Bxa3 {[%clk 0:00:00]} 42. Nd3 {[%clk 0:00:00]}  Bxb4 {[%clk 0:00:00]} 43. Ke2 {[%clk 0:00:00]}  Ba3 {[%clk 0:00:00]} 44. Kd2 {[%clk 0:00:00]}  Kg7 {[%clk 0:00:00]} 45. Kc2 {[%clk 0:00:00]}  Kf6 {[%clk 0:00:00]} 46. Bd5 {[%clk 0:00:00]}  Nb4+ {[%clk 0:00:00]} 47. Kb3 {[%clk 0:00:00]}  Nxd3 {[%clk 0:00:00]} 48. Kxa3 {[%clk 0:00:00]}  Nxc5 {[%clk 0:00:00]} 49. Bc4 {[%clk 0:00:00]}  b5 {[%clk 0:00:00]} 50. Be2 {[%clk 0:00:00]}  Ne4 {[%clk 0:00:00]} 51. Kb4 {[%clk 0:00:00]}  Kg5 {[%clk 0:00:00]} 52. Ka5 {[%clk 0:00:00]}  Nf6 {[%clk 0:00:00]} 53. Kxa6 {[%clk 0:00:00]}  b4 {[%clk 0:00:00]} 54. Kb5 {[%clk 0:00:00]}  b3 {[%clk 0:00:00]} 55. Bd3 {[%clk 0:00:00]}  b2 {[%clk 0:00:00]} 56. Bb1 {[%clk 0:00:00]}  Nxg4 {[%clk 0:00:00]} 57. Kc4 {[%clk 0:00:00]}  h5 {[%clk 0:00:00]} 58. Kc3 {[%clk 0:00:00]}  h4 {[%clk 0:00:00]} 59. Kxb2 {[%clk 0:00:00]}  Kf4 {[%clk 0:00:00]} 60. Kc3 {[%clk 0:00:00]}  h3 {[%clk 0:00:00]} 61. Bd3 {[%clk 0:00:00]}  h2 {[%clk 0:00:00]} 62. Bf1 {[%clk 0:00:00]}  h1=Q {[%clk 0:00:00]} 63. Bg2 {[%clk 0:00:00]}  Qxg2 {[%clk 0:00:00]} 64. Kc4 {[%clk 0:00:00]}  Qe4+ {[%clk 0:00:00]} 65. Kc5 {[%clk 0:00:00]}  Qd3 {[%clk 0:00:00]} 0-1


[Site "https://www.chess.com"]

[Event "Titled Tuesday Blitz August 16 Late 2022"]
[White "Gheorghiu, Calin"]
[Black "Begmuratov, Khumoyun"]
[WhiteFideId "1200305"]
[BlackFideId "14210207"]
[WhiteElo "2168"]
[BlackElo "1978"]
[Result "1-0"]
[Round "06"]
[TimeControl "180+1"]
[Date "2022.08.18"]
[WhiteClock "0:00:00"]
[BlackClock "0:00:00"]

1. d4 {[%clk 0:00:00]}  Nf6 {[%clk 0:00:00]} 2. Nc3 {[%clk 0:00:00]}  c5 {[%clk 0:00:00]} 3. d5 {[%clk 0:00:00]}  e6 {[%clk 0:00:00]} 4. e4 {[%clk 0:00:00]}  exd5 {[%clk 0:00:00]} 5. exd5 {[%clk 0:00:00]}  d6 {[%clk 0:00:00]} 6. Nf3 {[%clk 0:00:00]}  Be7 {[%clk 0:00:00]} 7. Be2 {[%clk 0:00:00]}  O-O {[%clk 0:00:00]} 8. O-O {[%clk 0:00:00]}  Re8 {[%clk 0:00:00]} 9. h3 {[%clk 0:00:00]}  a6 {[%clk 0:00:00]} 10. a4 {[%clk 0:00:00]}  Bf8 {[%clk 0:00:00]} 11. Bf4 {[%clk 0:00:00]}  Nbd7 {[%clk 0:00:00]} 12. Qd2 {[%clk 0:00:00]}  Rb8 {[%clk 0:00:00]} 13. a5 {[%clk 0:00:00]}  b5 {[%clk 0:00:00]} 14. axb6 {[%clk 0:00:00]}  Qxb6 {[%clk 0:00:00]} 15. b3 {[%clk 0:00:00]}  Bb7 {[%clk 0:00:00]} 16. Rfe1 {[%clk 0:00:00]}  g6 {[%clk 0:00:00]} 17. Bc4 {[%clk 0:00:00]}  Bg7 {[%clk 0:00:00]} 18. Ng5 {[%clk 0:00:00]}  h6 {[%clk 0:00:00]} 19. Nxf7 {[%clk 0:00:00]}  Kxf7 {[%clk 0:00:00]} 20. Re6 {[%clk 0:00:00]}  Bf8 {[%clk 0:00:00]} 21. Rae1 {[%clk 0:00:00]}  Qc7 {[%clk 0:00:00]} 22. Bxh6 {[%clk 0:00:00]}  Bxh6 {[%clk 0:00:00]} 23. Qxh6 {[%clk 0:00:00]}  Nf8 {[%clk 0:00:00]} 24. Ne4 {[%clk 0:00:00]}  Nxe4 {[%clk 0:00:00]} 25. R6xe4 {[%clk 0:00:00]}  Rxe4 {[%clk 0:00:00]} 26. Rxe4 {[%clk 0:00:00]}  Bc8 {[%clk 0:00:00]} 27. Rf4+ {[%clk 0:00:00]}  Bf5 {[%clk 0:00:00]} 28. g4 {[%clk 0:00:00]}  Ke7 {[%clk 0:00:00]} 29. gxf5 {[%clk 0:00:00]}  Re8 {[%clk 0:00:00]} 30. fxg6 {[%clk 0:00:00]}  Kd8 {[%clk 0:00:00]} 31. g7 {[%clk 0:00:00]}  Nd7 {[%clk 0:00:00]} 32. Qg5+ {[%clk 0:00:00]}  Kc8 {[%clk 0:00:00]} 33. g8=Q {[%clk 0:00:00]}  Rxg8 {[%clk 0:00:00]} 34. Qxg8+ {[%clk 0:00:00]}  Kb7 {[%clk 0:00:00]} 35. Qg7 {[%clk 0:00:00]}  a5 {[%clk 0:00:00]} 36. Rf7 {[%clk 0:00:00]}  Kc8 {[%clk 0:00:00]} 37. Rxd7 {[%clk 0:00:00]}  Qxd7 {[%clk 0:00:00]} 38. Qxd7+ {[%clk 0:00:00]}  Kxd7 {[%clk 0:00:00]} 39. f4 {[%clk 0:00:00]}  a4 {[%clk 0:00:00]} 40. bxa4 {[%clk 0:00:00]}  Ke7 {[%clk 0:00:00]} 41. Kf2 {[%clk 0:00:00]}  Kf6 {[%clk 0:00:00]} 42. Kf3 {[%clk 0:00:00]}  Kf5 {[%clk 0:00:00]} 1-0


[Site "https://www.chess.com"]

[Event "Titled Tuesday Blitz August 16 Late 2022"]
[White "Gomez Ledo, Roberto Carlos"]
[Black "Shimanov, Aleksandr"]
[WhiteFideId "3507076"]
[BlackFideId "4198603"]
[WhiteElo "2379"]
[BlackElo "2605"]
[Result "0-1"]
[Round "06"]
[TimeControl "180+1"]
[Date "2022.08.16"]
[WhiteClock "0:00:08"]
[BlackClock "0:00:04"]

1. d4 {[%clk 0:03:00]}  Nf6 {[%clk 0:02:59]} 2. Bf4 {[%clk 0:03:00]}  g6 {[%clk 0:02:56]} 3. Nc3 {[%clk 0:02:59]}  d5 {[%clk 0:02:55]} 4. Nb5 {[%clk 0:02:58]}  Na6 {[%clk 0:02:54]} 5. e3 {[%clk 0:02:58]}  Bg7 {[%clk 0:02:50]} 6. h3 {[%clk 0:02:57]}  O-O {[%clk 0:02:48]} 7. Nf3 {[%clk 0:02:57]}  Ne4 {[%clk 0:02:45]} 8. Be2 {[%clk 0:02:52]}  c6 {[%clk 0:02:45]} 9. Na3 {[%clk 0:02:51]}  Nc7 {[%clk 0:02:28]} 10. O-O {[%clk 0:02:50]}  Ne8 {[%clk 0:02:28]} 11. c4 {[%clk 0:02:47]}  Be6 {[%clk 0:02:25]} 12. Rc1 {[%clk 0:02:45]}  a6 {[%clk 0:02:23]} 13. Qb3 {[%clk 0:02:25]}  Qd7 {[%clk 0:02:18]} 14. Rfd1 {[%clk 0:02:16]}  f6 {[%clk 0:02:12]} 15. cxd5 {[%clk 0:02:13]}  cxd5 {[%clk 0:02:11]} 16. Qb6 {[%clk 0:02:03]}  Bf7 {[%clk 0:02:00]} 17. Rc2 {[%clk 0:01:59]}  g5 {[%clk 0:01:53]} 18. Bh2 {[%clk 0:01:57]}  Bg6 {[%clk 0:01:52]} 19. Rdc1 {[%clk 0:01:53]}  Rf7 {[%clk 0:01:38]} 20. Ne1 {[%clk 0:01:43]}  N4d6 {[%clk 0:01:16]} 21. Bd3 {[%clk 0:01:38]}  Bxd3 {[%clk 0:00:47]} 22. Nxd3 {[%clk 0:01:39]}  e6 {[%clk 0:00:48]} 23. Bxd6 {[%clk 0:01:17]}  Qxd6 {[%clk 0:00:44]} 24. Qxd6 {[%clk 0:01:16]}  Nxd6 {[%clk 0:00:45]} 25. Rc7 {[%clk 0:01:16]}  Re8 {[%clk 0:00:31]} 26. b3 {[%clk 0:01:05]}  Bf8 {[%clk 0:00:30]} 27. Nb1 {[%clk 0:01:02]}  Nb5 {[%clk 0:00:24]} 28. Rxf7 {[%clk 0:00:59]}  Kxf7 {[%clk 0:00:25]} 29. a4 {[%clk 0:00:59]}  Na7 {[%clk 0:00:26]} 30. Kf1 {[%clk 0:00:51]}  Nc6 {[%clk 0:00:25]} 31. Nc5 {[%clk 0:00:47]}  Bxc5 {[%clk 0:00:25]} 32. Rxc5 {[%clk 0:00:48]}  h5 {[%clk 0:00:24]} 33. Nd2 {[%clk 0:00:42]}  h4 {[%clk 0:00:24]} 34. Nf3 {[%clk 0:00:40]}  Ke7 {[%clk 0:00:24]} 35. Ne1 {[%clk 0:00:39]}  Kd6 {[%clk 0:00:24]} 36. Nd3 {[%clk 0:00:39]}  e5 {[%clk 0:00:22]} 37. dxe5+ {[%clk 0:00:34]}  fxe5 {[%clk 0:00:19]} 38. Rc1 {[%clk 0:00:33]}  e4 {[%clk 0:00:16]} 39. Ne1 {[%clk 0:00:24]}  Rc8 {[%clk 0:00:11]} 40. Rc2 {[%clk 0:00:22]}  Rf8 {[%clk 0:00:07]} 41. Ke2 {[%clk 0:00:21]}  b5 {[%clk 0:00:05]} 42. axb5 {[%clk 0:00:20]}  axb5 {[%clk 0:00:06]} 43. Rd2 {[%clk 0:00:19]}  Ra8 {[%clk 0:00:06]} 44. Nc2 {[%clk 0:00:19]}  b4 {[%clk 0:00:06]} 45. Nd4 {[%clk 0:00:18]}  Nxd4+ {[%clk 0:00:06]} 46. Rxd4 {[%clk 0:00:18]}  Kc5 {[%clk 0:00:07]} 47. Rd2 {[%clk 0:00:18]}  Ra3 {[%clk 0:00:07]} 48. Rc2+ {[%clk 0:00:18]}  Kd6 {[%clk 0:00:08]} 49. Rb2 {[%clk 0:00:18]}  Ke5 {[%clk 0:00:08]} 50. f3 {[%clk 0:00:17]}  Kf5 {[%clk 0:00:08]} 51. Kf2 {[%clk 0:00:17]}  Ra1 {[%clk 0:00:08]} 52. Rd2 {[%clk 0:00:16]}  Ke5 {[%clk 0:00:08]} 53. g3 {[%clk 0:00:16]}  Rb1 {[%clk 0:00:07]} 54. f4+ {[%clk 0:00:15]}  gxf4 {[%clk 0:00:06]} 55. gxf4+ {[%clk 0:00:13]}  Ke6 {[%clk 0:00:06]} 56. f5+ {[%clk 0:00:12]}  Ke5 {[%clk 0:00:07]} 57. f6 {[%clk 0:00:13]}  Kxf6 {[%clk 0:00:05]} 58. Rxd5 {[%clk 0:00:13]}  Rb2+ {[%clk 0:00:05]} 59. Kf1 {[%clk 0:00:11]}  Rxb3 {[%clk 0:00:06]} 60. Rh5 {[%clk 0:00:10]}  Rxe3 {[%clk 0:00:05]} 61. Rxh4 {[%clk 0:00:11]}  b3 {[%clk 0:00:05]} 62. Rh6+ {[%clk 0:00:11]}  Ke5 {[%clk 0:00:05]} 63. h4 {[%clk 0:00:10]}  Kd4 {[%clk 0:00:05]} 64. Rb6 {[%clk 0:00:10]}  Kc3 {[%clk 0:00:03]} 65. h5 {[%clk 0:00:10]}  Rh3 {[%clk 0:00:03]} 66. h6 {[%clk 0:00:11]}  b2 {[%clk 0:00:03]} 67. Kg2 {[%clk 0:00:10]}  Rh5 {[%clk 0:00:03]} 68. Kf2 {[%clk 0:00:10]}  Rh3 {[%clk 0:00:03]} 69. Kg2 {[%clk 0:00:10]}  Rh5 {[%clk 0:00:04]} 70. Kf2 {[%clk 0:00:11]}  Rh1 {[%clk 0:00:04]} 71. Kg2 {[%clk 0:00:10]}  Rxh6 {[%clk 0:00:04]} 72. Rxh6 {[%clk 0:00:08]}  b1=Q {[%clk 0:00:04]} 0-1


[Site "https://www.chess.com"]

[Event "Titled Tuesday Blitz August 16 Late 2022"]
[White "Gubajdullin, Alexei"]
[Black "Wachinger, Guenther"]
[WhiteFideId "4141202"]
[BlackFideId "4604261"]
[WhiteElo "2214"]
[BlackElo "2212"]
[Result "1/2-1/2"]
[Round "06"]
[TimeControl "180+1"]
[Date "2022.08.18"]
[WhiteClock "0:00:00"]
[BlackClock "0:00:00"]

1. Nf3 {[%clk 0:00:00]}  d5 {[%clk 0:00:00]} 2. g3 {[%clk 0:00:00]}  e6 {[%clk 0:00:00]} 3. Bg2 {[%clk 0:00:00]}  Nf6 {[%clk 0:00:00]} 4. O-O {[%clk 0:00:00]}  Be7 {[%clk 0:00:00]} 5. b3 {[%clk 0:00:00]}  O-O {[%clk 0:00:00]} 6. Bb2 {[%clk 0:00:00]}  a5 {[%clk 0:00:00]} 7. c4 {[%clk 0:00:00]}  a4 {[%clk 0:00:00]} 8. cxd5 {[%clk 0:00:00]}  exd5 {[%clk 0:00:00]} 9. bxa4 {[%clk 0:00:00]}  Nbd7 {[%clk 0:00:00]} 10. Nc3 {[%clk 0:00:00]}  Nb6 {[%clk 0:00:00]} 11. d3 {[%clk 0:00:00]}  Bd7 {[%clk 0:00:00]} 12. Ne5 {[%clk 0:00:00]}  Nxa4 {[%clk 0:00:00]} 13. Nxd7 {[%clk 0:00:00]}  Qxd7 {[%clk 0:00:00]} 14. Nxa4 {[%clk 0:00:00]}  Qxa4 {[%clk 0:00:00]} 15. Qb3 {[%clk 0:00:00]}  Qxb3 {[%clk 0:00:00]} 16. axb3 {[%clk 0:00:00]}  c6 {[%clk 0:00:00]} 17. Rxa8 {[%clk 0:00:00]}  Rxa8 {[%clk 0:00:00]} 18. Ra1 {[%clk 0:00:00]}  Rxa1+ {[%clk 0:00:00]} 19. Bxa1 {[%clk 0:00:00]}  Nd7 {[%clk 0:00:00]} 20. d4 {[%clk 0:00:00]}  Bf6 {[%clk 0:00:00]} 21. Kf1 {[%clk 0:00:00]}  Kf8 {[%clk 0:00:00]} 22. e3 {[%clk 0:00:00]}  Ke7 {[%clk 0:00:00]} 23. Ke2 {[%clk 0:00:00]}  Kd6 {[%clk 0:00:00]} 24. Bc3 {[%clk 0:00:00]}  b6 {[%clk 0:00:00]} 25. Bd2 {[%clk 0:00:00]}  c5 {[%clk 0:00:00]} 26. Kd3 {[%clk 0:00:00]}  b5 {[%clk 0:00:00]} 27. dxc5+ {[%clk 0:00:00]}  Nxc5+ {[%clk 0:00:00]} 28. Kc2 {[%clk 0:00:00]}  Ne4 {[%clk 0:00:00]} 29. Be1 {[%clk 0:00:00]}  Kc6 {[%clk 0:00:00]} 30. f3 {[%clk 0:00:00]}  Nc5 {[%clk 0:00:00]} 31. Bh3 {[%clk 0:00:00]}  Bg5 {[%clk 0:00:00]} 32. Bd2 {[%clk 0:00:00]}  Ne6 {[%clk 0:00:00]} 33. Bf5 {[%clk 0:00:00]}  g6 {[%clk 0:00:00]} 34. Bd3 {[%clk 0:00:00]}  d4 {[%clk 0:00:00]} 35. f4 {[%clk 0:00:00]}  dxe3 {[%clk 0:00:00]} 36. Bxe3 {[%clk 0:00:00]}  Bf6 {[%clk 0:00:00]} 37. Be4+ {[%clk 0:00:00]}  Kd6 {[%clk 0:00:00]} 38. b4 {[%clk 0:00:00]}  Bd4 {[%clk 0:00:00]} 39. Kd3 {[%clk 0:00:00]}  Bxe3 {[%clk 0:00:00]} 40. Kxe3 {[%clk 0:00:00]}  h6 {[%clk 0:00:00]} 41. f5 {[%clk 0:00:00]}  gxf5 {[%clk 0:00:00]} 42. Bxf5 {[%clk 0:00:00]}  Nc7 {[%clk 0:00:00]} 43. Kf4 {[%clk 0:00:00]}  Nd5+ {[%clk 0:00:00]} 44. Kg4 {[%clk 0:00:00]}  Ne3+ {[%clk 0:00:00]} 45. Kf4 {[%clk 0:00:00]}  Nxf5 {[%clk 0:00:00]} 46. Kxf5 {[%clk 0:00:00]}  Kd5 {[%clk 0:00:00]} 47. Kf6 {[%clk 0:00:00]}  Kc4 {[%clk 0:00:00]} 48. Kxf7 {[%clk 0:00:00]}  Kxb4 {[%clk 0:00:00]} 49. g4 {[%clk 0:00:00]}  Kc5 {[%clk 0:00:00]} 50. h4 {[%clk 0:00:00]}  b4 {[%clk 0:00:00]} 51. g5 {[%clk 0:00:00]}  hxg5 {[%clk 0:00:00]} 52. hxg5 {[%clk 0:00:00]}  b3 {[%clk 0:00:00]} 53. g6 {[%clk 0:00:00]}  b2 {[%clk 0:00:00]} 54. g7 {[%clk 0:00:00]}  b1=Q {[%clk 0:00:00]} 55. g8=Q {[%clk 0:00:00]}  Qf5+ {[%clk 0:00:00]} 56. Kg7 {[%clk 0:00:00]}  Qg5+ {[%clk 0:00:00]} 57. Kf7 {[%clk 0:00:00]}  Qf5+ {[%clk 0:00:00]} 58. Kg7 {[%clk 0:00:00]}  Kd6 {[%clk 0:00:00]} 59. Qf8+ {[%clk 0:00:00]}  Qxf8+ {[%clk 0:00:00]} 60. Kxf8 {[%clk 0:00:00]} 1/2-1/2


[Site "https://www.chess.com"]